[Event "26th Hit Open-A 2022"]
[Site "Nova Gorica"]
[Date "2022.09.15"]
[Round "1.6"]
[White "Guid, Matej"]
[Black "Subelj, Jan"]
[Result "1-0"]
[ECO "B24"]
[WhiteElo "2292"]
[BlackElo "2505"]
[Annotator "ChessBase"]
[PlyCount "177"]
[EventDate "2022.09.16"]
[EventType "swiss"]
[EventCountry "SLO"]
[SourceTitle "playchess.com"]
[Source "ChessBase"]
[SourceQuality "1"]
[TimeControl "5400+30"]

1. e4 {[%emt 0:00:03]} c5 {[%emt 0:00:12]} 2. Nc3 {[%emt 0:00:04]} e6 {[%emt 0:00:10]} 3. Nge2 {[%emt 0:00:04]} Nc6 {[%emt 0:01:50]} 4. g3 {[%emt 0:00:05]} d5 {[%emt 0:01:23]} 5. exd5 {[%emt 0:00:06]} exd5 {[%emt 0:00:06]} 6. d4 {[%emt 0:00:04]} cxd4 {[%emt 0:01:56]} 7. Nxd4 {[%emt 0:00:27]} Nf6 {[%emt 0:00:07]} 8. Bg2 {[%emt 0:01:37]} Bg4 {[%emt 0:01:19]} 9. Nde2 {[%emt 0:04:10]} Bb4 {[%emt 0:04:48]} 10. O-O {[%emt 0:02:45]} Bxc3 {[%emt 0:02:08]} 11. bxc3 {[%emt 0:00:05]} O-O {[%emt 0:00:42]} 12. h3 {[%emt 0:01:22]} Bxe2 {[%emt 0:04:35]} 13. Qxe2 {[%emt 0:00:05]} Qa5 {[%emt 0:03:49]} 14. Qd3 {[%emt 0:03:18]} Rac8 {[%emt 0:02:24]} 15. Re1 {[%emt 0:12:45]} Ne4 {[%emt 0:22:00]} 16. Bf4 {[%emt 0:20:05]} f5 {[%emt 0:05:59]} 17. Rab1 {[%emt 0:08:36]} Rf7 {[%emt 0:04:01]} 18. c4 {[%emt 0:08:43]} Nb4 {[%emt 0:02:00]} 19. Qb3 {[%emt 0:00:17]} Rxc4 {[%emt 0:00:33]} 20. Bf1 {[%emt 0:00:40]} Rxc2 {[%emt 0:25:54]} 21. Qxb4 {[%emt 0:06:01]} Qxb4 {[%emt 0:01:01]} 22. Rxb4 {[%emt 0:00:07]} g5 {[%emt 0:00:52]} 23. Bd3 {[%emt 0:05:02]} Rxa2 {[%emt 0:02:22]} 24. Bxe4 {[%emt 0:00:06]} fxe4 {[%emt 0:00:26]} 25. Be3 {[%emt 0:00:08]} a5 {[%emt 0:07:20]} 26. Rb5 {[%emt 0:03:30]} Rd7 {[%emt 0:00:15]} 27. Rd1 {[%emt 0:00:26]} a4 {[%emt 0:00:19]} 28. Rd4 {[%emt 0:08:26]} h6 {[%emt 0:00:50]} 29. Rdb4 {[%emt 0:01:04]} a3 {[%emt 0:02:35]} 30. Kg2 {[%emt 0:02:30]} Rc2 {[%emt 0:01:03]} 31. Ra5 {[%emt 0:04:23]} a2 {[%emt 0:01:08]} 32. Rba4 {[%emt 0:00:11]} Kf7 {[%emt 0:00:10]} 33. Rxa2 {[%emt 0:01:13]} Rxa2 {[%emt 0:00:07]} 34. Rxa2 {[%emt 0:00:03]} d4 {[%emt 0:00:08]} 35. Rd2 {[%emt 0:00:56]} d3 {[%emt 0:00:03]} 36. Rb2 {[%emt 0:01:49]} Ke6 {[%emt 0:01:46]} 37. Kf1 {[%emt 0:00:58]} b5 {[%emt 0:01:19]} 38. Ke1 {[%emt 0:00:50]} Rb7 {[%emt 0:01:06]} 39. Kd2 {[%emt 0:01:54]} b4 {[%emt 0:00:38]} 40. Bc5 {[%emt 0:00:21]} b3 {[%emt 0:00:25]} 41. Kc3 {[%emt 0:01:10]} Rc7 {[%emt 0:00:10]} 42. Kc4 {[%emt 0:00:19]} Kf5 {[%emt 0:00:55]} 43. Rxb3 {[%emt 0:01:04]} Ke5 {[%emt 0:00:28]} 44. Rb1 {[%emt 0:00:42]} h5 {[%emt 0:00:24]} 45. Re1 {[%emt 0:00:37]} Kf5 {[%emt 0:00:40]} 46. Kd5 {[%emt 0:00:50]} Rd7+ {[%emt 0:00:26]} 47. Bd6 {[%emt 0:00:59]} Ra7 {[%emt 0:00:25]} 48. Bc5 {[%emt 0:01:46]} Rd7+ {[%emt 0:00:10]} 49. Kc4 {[%emt 0:00:06]} h4 {[%emt 0:00:29]} 50. gxh4 {[%emt 0:01:28]} gxh4 {[%emt 0:00:05]} 51. Be3 {[%emt 0:00:08]} Rc7+ {[%emt 0:00:23]} 52. Kb3 {[%emt 0:00:34]} Rb7+ {[%emt 0:00:20]} 53. Kc4 {[%emt 0:00:30]} Ke5 {[%emt 0:00:27]} 54. Rg1 {[%emt 0:00:14]} Rc7+ {[%emt 0:00:06]} 55. Kb3 {[%emt 0:00:16]} Rb7+ {[%emt 0:00:25]} 56. Kc3 {[%emt 0:00:18]} Rc7+ {[%emt 0:00:04]} 57. Kd2 {[%emt 0:00:15]} Rc2+ {[%emt 0:00:05]} 58. Kd1 {[%emt 0:00:06]} Ra2 {[%emt 0:00:30]} 59. Rg5+ {[%emt 0:00:07]} Kf6 {[%emt 0:00:35]} 60. Rg4 {[%emt 0:00:07]} Ra1+ {[%emt 0:00:15]} 61. Kd2 {[%emt 0:00:28]} Ra2+ {[%emt 0:00:06]} 62. Kc3 {[%emt 0:00:34]} Rc2+ {[%emt 0:00:22]} 63. Kb3 {[%emt 0:00:04]} Kf5 {[%emt 0:00:30]} 64. Rf4+ {[%emt 0:00:22]} Ke5 {[%emt 0:00:06]} 65. Rxh4 {[%emt 0:00:04]} Rc8 {[%emt 0:00:08]} 66. Rh5+ {[%emt 0:00:11]} Ke6 {[%emt 0:00:08]} 67. h4 {[%emt 0:00:23]} Rd8 {[%emt 0:01:18]} 68. Kc3 {[%emt 0:00:11]} Rc8+ {[%emt 0:00:07]} 69. Kd2 {[%emt 0:00:13]} Rc2+ {[%emt 0:00:05]} 70. Kd1 {[%emt 0:00:05]} Ra2 {[%emt 0:00:03]} 71. Rc5 {[%emt 0:01:48]} Ra1+ {[%emt 0:00:41]} 72. Kd2 {[%emt 0:00:28]} Ra2+ {[%emt 0:00:55]} 73. Ke1 {[%emt 0:00:04]} Ra1+ {[%emt 0:00:18]} 74. Rc1 {[%emt 0:00:13]} Ra5 {[%emt 0:00:20]} 75. Kf1 {[%emt 0:00:09]} Rd5 {[%emt 0:02:24]} 76. Kg2 {[%emt 0:00:19]} Kf5 {[%emt 0:00:39]} 77. h5 {[%emt 0:00:10]} Kg4 {[%emt 0:01:22]} 78. h6 {[%emt 0:00:07]} Rd7 {[%emt 0:00:02]} 79. Rh1 {[%emt 0:00:53]} Rh7 {[%emt 0:00:06]} 80. Rh3 {[%emt 0:00:30]} Rh8 {[%emt 0:00:28]} 81. h7 {[%emt 0:01:19]} Kf5 {[%emt 0:00:04]} 82. Rh6 {[%emt 0:00:06]} Kg4 {[%emt 0:00:28]} 83. Kf1 {[%emt 0:00:40]} Kf3 {[%emt 0:00:22]} 84. Ke1 {[%emt 0:00:04]} Kg4 {[%emt 0:00:21]} 85. Kd2 {[%emt 0:01:08]} Kf5 {[%emt 0:00:10]} 86. Bd4 {[%emt 0:00:44]} Kg5 {[%emt 0:00:05]} 87. Bxh8 {[%emt 0:00:14]} Kxh6 {[%emt 0:00:04]} 88. Bc3 {[%emt 0:00:05]} Kxh7 {[%emt 0:00:05]} 89. Ke3 {[%emt 0:00:04]} 1-0

[Event "26th Hit Open-A 2022"]
[Site "Nova Gorica"]
[Date "2022.09.15"]
[Round "1.7"]
[White "Diermair, Andreas"]
[Black "Lavrencic, Matic"]
[Result "1-0"]
[ECO "A11"]
[WhiteElo "2468"]
[BlackElo "2274"]
[Annotator "ChessBase"]
[PlyCount "69"]
[EventDate "2022.09.16"]
[EventType "swiss"]
[EventCountry "SLO"]
[SourceTitle "playchess.com"]
[Source "ChessBase"]
[SourceQuality "1"]
[TimeControl "5400+30"]

1. Nf3 {[%emt 0:00:03]} d5 {[%emt 0:00:42]} 2. g3 {[%emt 0:00:09]} Nf6 {[%emt 0:01:51]} 3. Bg2 {[%emt 0:00:05]} g6 {[%emt 0:00:36]} 4. c4 {[%emt 0:01:47]} c6 {[%emt 0:01:01]} 5. b3 {[%emt 0:00:40]} Bg7 {[%emt 0:01:10]} 6. Bb2 {[%emt 0:00:18]} O-O {[%emt 0:00:18]} 7. O-O {[%emt 0:00:04]} Bf5 {[%emt 0:01:49]} 8. d3 {[%emt 0:01:10]} Re8 {[%emt 0:02:25]} 9. Nbd2 {[%emt 0:01:30]} Nbd7 {[%emt 0:01:54]} 10. Nd4 {[%emt 0:03:26]} Nc5 {[%emt 0:04:38]} 11. Nxf5 {[%emt 0:04:10]} gxf5 {[%emt 0:00:09]} 12. b4 {[%emt 0:00:30]} Ncd7 {[%emt 0:01:15]} 13. Nb3 {[%emt 0:03:16]} e6 {[%emt 0:02:21]} 14. Rc1 {[%emt 0:02:46]} Rc8 {[%emt 0:05:05]} 15. Qd2 {[%emt 0:02:55]} Qe7 {[%emt 0:07:40]} 16. Rc2 {[%emt 0:03:40]} Nb6 {[%emt 0:02:26]} 17. a3 {[%emt 0:06:44]} Red8 {[%emt 0:10:29]} 18. Qc1 {[%emt 0:01:53]} Ne8 {[%emt 0:11:05]} 19. Bxg7 {[%emt 0:02:05]} Kxg7 {[%emt 0:00:53]} 20. Na5 {[%emt 0:00:42]} h6 {[%emt 0:13:15]} 21. Qf4 {[%emt 0:06:54]} Nf6 {[%emt 0:08:23]} 22. Rfc1 {[%emt 0:03:26]} dxc4 {[%emt 0:06:29]} 23. dxc4 {[%emt 0:02:12]} Rc7 {[%emt 0:01:15]} 24. Qe5 {[%emt 0:03:07]} Rcd7 {[%emt 0:07:26]} 25. Bf3 {[%emt 0:00:30]} Rd1+ {[%emt 0:02:25]} 26. Rxd1 {[%emt 0:07:56]} Rxd1+ {[%emt 0:00:11]} 27. Kg2 {[%emt 0:00:03]} Qd7 {[%emt 0:01:46]} 28. e3 {[%emt 0:09:01]} Rb1 {[%emt 0:01:02]} 29. Qd4 {[%emt 0:01:25]} Qc7 {[%emt 0:00:54]} 30. Rd2 {[%emt 0:01:27]} Nc8 {[%emt 0:00:43]} 31. c5 {[%emt 0:03:42]} e5 {[%emt 0:01:22]} 32. Qd3 {[%emt 0:00:36]} Ra1 {[%emt 0:00:39]} 33. Qxf5 {[%emt 0:00:26]} Ne7 {[%emt 0:00:22]} 34. Qd3 {[%emt 0:01:09]} Ned5 {[%emt 0:00:23]} 35. e4 {[%emt 0:00:42]} 1-0

[Event "26th Hit Open-A 2022"]
[Site "Nova Gorica"]
[Date "2022.09.15"]
[Round "1.8"]
[White "Stevanic, David"]
[Black "Pavlovic, Milos"]
[Result "0-1"]
[ECO "C18"]
[WhiteElo "2261"]
[BlackElo "2468"]
[Annotator "ChessBase"]
[PlyCount "95"]
[EventDate "2022.09.16"]
[EventType "swiss"]
[EventCountry "SLO"]
[SourceTitle "playchess.com"]
[Source "ChessBase"]
[SourceQuality "1"]
[TimeControl "5400+30"]

1. e4 {[%emt 0:00:03]} e6 {[%emt 0:00:52]} 2. d4 {[%emt 0:00:05]} d5 {[%emt 0:00:04]} 3. Nc3 {[%emt 0:00:04]} Bb4 {[%emt 0:02:50]} 4. e5 {[%emt 0:00:18]} c5 {[%emt 0:00:05]} 5. a3 {[%emt 0:01:03]} Bxc3+ {[%emt 0:00:09]} 6. bxc3 {[%emt 0:00:04]} Nc6 {[%emt 0:00:06]} 7. Qg4 {[%emt 0:01:35]} g6 {[%emt 0:00:17]} 8. Nf3 {[%emt 0:02:08]} Qa5 {[%emt 0:10:46]} 9. Bd2 {[%emt 0:00:46]} Qa4 {[%emt 0:00:46]} 10. c4 {[%emt 0:09:39]} Qxc2 {[%emt 0:22:32]} 11. dxc5 {[%emt 0:00:50]} Qe4+ {[%emt 0:22:48]} 12. Qxe4 {[%emt 0:00:10]} dxe4 {[%emt 0:00:02]} 13. Ng5 {[%emt 0:00:21]} f5 {[%emt 0:00:14]} 14. f3 {[%emt 0:13:28]} h6 {[%emt 0:07:13]} 15. Nh3 {[%emt 0:00:24]} Nd4 {[%emt 0:18:12]} 16. Rd1 {[%emt 0:09:17]} Bd7 {[%emt 0:06:42]} 17. fxe4 {[%emt 0:05:33]} Ba4 {[%emt 0:00:12]} 18. Rb1 {[%emt 0:03:45]} O-O-O {[%emt 0:04:12]} 19. exf5 {[%emt 0:03:43]} gxf5 {[%emt 0:00:18]} 20. Nf4 {[%emt 0:05:38]} Ne7 {[%emt 0:00:00]} 21. Bc3 {[%emt 0:02:56]} Nec6 {[%emt 0:00:10]} 22. Be2 {[%emt 0:03:26]} Nxe5 {[%emt 0:01:29]} 23. O-O {[%emt 0:06:26]} Rhg8 {[%emt 0:00:56]} 24. Bh5 {[%emt 0:05:12]} Bc6 {[%emt 0:00:18]} 25. Rbd1 {[%emt 0:04:03]} Nef3+ {[%emt 0:01:11]} 26. Kf2 {[%emt 0:08:37]} Nxh2 {[%emt 0:00:07]} 27. Rxd4 {[%emt 0:00:31]} Nxf1 {[%emt 0:00:11]} 28. Kxf1 {[%emt 0:02:30]} Rg3 {[%emt 0:00:26]} 29. Rxd8+ {[%emt 0:01:27]} Kxd8 {[%emt 0:00:02]} 30. Bf6+ {[%emt 0:02:19]} Kd7 {[%emt 0:00:46]} 31. Kf2 {[%emt 0:00:46]} Rxa3 {[%emt 0:00:22]} 32. Bf7 {[%emt 0:00:05]} Ra2+ {[%emt 0:00:48]} 33. Kg1 {[%emt 0:00:27]} Be4 {[%emt 0:00:33]} 34. Bxe6+ {[%emt 0:01:04]} Kc6 {[%emt 0:00:37]} 35. Bd4 {[%emt 0:01:09]} a5 {[%emt 0:00:50]} 36. g4 {[%emt 0:01:14]} fxg4 {[%emt 0:00:28]} 37. Bd5+ {[%emt 0:00:14]} Bxd5 {[%emt 0:00:04]} 38. cxd5+ {[%emt 0:00:06]} Kd7 {[%emt 0:00:29]} 39. d6 {[%emt 0:03:38]} a4 {[%emt 0:00:31]} 40. Nd5 {[%emt 0:02:11]} Rd2 {[%emt 0:00:13]} 41. Nb6+ {[%emt 0:00:33]} Kc6 {[%emt 0:00:39]} 42. Be3 {[%emt 0:01:11]} Rd1+ {[%emt 0:01:14]} 43. Kf2 {[%emt 0:00:37]} a3 {[%emt 0:00:15]} 44. Nc4 {[%emt 0:02:20]} a2 {[%emt 0:00:13]} 45. Na5+ {[%emt 0:00:02]} Kd7 {[%emt 0:00:21]} 46. Nb3 {[%emt 0:00:04]} Rb1 {[%emt 0:00:31]} 47. c6+ {[%emt 0:01:13]} Kxc6 {[%emt 0:00:11]} 48. Ke2 {[%emt 0:00:24]} 0-1

[Event "26th Hit Open-A 2022"]
[Site "Nova Gorica"]
[Date "2022.09.15"]
[Round "1.9"]
[White "Stefansson, Vignir Vatnar"]
[Black "Manish Anto Cristiano F"]
[Result "1-0"]
[ECO "D23"]
[WhiteElo "2452"]
[BlackElo "2249"]
[Annotator "ChessBase"]
[PlyCount "93"]
[EventDate "2022.09.16"]
[EventType "swiss"]
[EventCountry "SLO"]
[SourceTitle "playchess.com"]
[Source "ChessBase"]
[SourceQuality "1"]
[TimeControl "5400+30"]

1. Nf3 {[%emt 0:00:02]} d5 {[%emt 0:00:18]} 2. d4 {[%emt 0:00:16]} Nf6 {[%emt 0:00:10]} 3. c4 {[%emt 0:01:14]} c6 {[%emt 0:00:07]} 4. Qb3 {[%emt 0:00:59]} dxc4 {[%emt 0:00:52]} 5. Qxc4 {[%emt 0:00:08]} Bf5 {[%emt 0:01:05]} 6. g3 {[%emt 0:00:09]} e6 {[%emt 0:00:14]} 7. Bg2 {[%emt 0:00:08]} Nbd7 {[%emt 0:00:27]} 8. O-O {[%emt 0:00:09]} Be7 {[%emt 0:00:54]} 9. Qb3 {[%emt 0:00:06]} Qb6 {[%emt 0:00:30]} 10. Nbd2 {[%emt 0:00:05]} O-O {[%emt 0:00:35]} 11. Nc4 {[%emt 0:00:03]} Qa6 {[%emt 0:02:14]} 12. Bf4 {[%emt 0:00:06]} Rfd8 {[%emt 0:04:53]} 13. Bc7 {[%emt 0:00:49]} Re8 {[%emt 0:01:29]} 14. Nfd2 {[%emt 0:07:16]} Bg6 {[%emt 0:03:39]} 15. Rac1 {[%emt 0:16:13]} Rac8 {[%emt 0:02:53]} 16. Bd6 {[%emt 0:01:05]} Nb6 {[%emt 0:00:15]} 17. Rfe1 {[%emt 0:07:15]} Nxc4 {[%emt 0:07:46]} 18. Nxc4 {[%emt 0:00:08]} Rcd8 {[%emt 0:00:20]} 19. Bxe7 {[%emt 0:13:34]} Rxe7 {[%emt 0:00:08]} 20. e3 {[%emt 0:00:03]} Be4 {[%emt 0:09:53]} 21. Bf1 {[%emt 0:00:07]} b5 {[%emt 0:01:29]} 22. Nd2 {[%emt 0:08:45]} Bd5 {[%emt 0:14:15]} 23. Qb4 {[%emt 0:03:03]} Red7 {[%emt 0:07:20]} 24. a3 {[%emt 0:08:39]} Ne4 {[%emt 0:00:36]} 25. Nxe4 {[%emt 0:01:07]} Bxe4 {[%emt 0:00:08]} 26. Be2 {[%emt 0:00:44]} Rd5 {[%emt 0:05:23]} 27. f3 {[%emt 0:01:10]} Bg6 {[%emt 0:00:09]} 28. Rc5 {[%emt 0:00:54]} Rxc5 {[%emt 0:01:02]} 29. Qxc5 {[%emt 0:00:04]} Qb6 {[%emt 0:00:33]} 30. Qxb6 {[%emt 0:02:34]} axb6 {[%emt 0:00:08]} 31. Rc1 {[%emt 0:00:01]} e5 {[%emt 0:08:02]} 32. Rxc6 {[%emt 0:00:42]} exd4 {[%emt 0:00:18]} 33. exd4 {[%emt 0:00:08]} h5 {[%emt 0:01:23]} 34. Rxb6 {[%emt 0:00:13]} Rxd4 {[%emt 0:00:09]} 35. Rxb5 {[%emt 0:00:09]} Rd2 {[%emt 0:00:06]} 36. Kf1 {[%emt 0:00:11]} Rc2 {[%emt 0:00:13]} 37. a4 {[%emt 0:00:43]} Rc1+ {[%emt 0:00:06]} 38. Kf2 {[%emt 0:00:06]} Rh1 {[%emt 0:00:22]} 39. h4 {[%emt 0:00:33]} Rh2+ {[%emt 0:00:09]} 40. Ke3 {[%emt 0:00:02]} Rh3 {[%emt 0:00:42]} 41. a5 {[%emt 0:00:13]} Rh1 {[%emt 0:00:27]} 42. b4 {[%emt 0:00:17]} Ra1 {[%emt 0:00:09]} 43. Rb8+ {[%emt 0:00:23]} Kh7 {[%emt 0:00:08]} 44. a6 {[%emt 0:00:27]} Ra3+ {[%emt 0:00:06]} 45. Kd4 {[%emt 0:00:04]} Ra2 {[%emt 0:00:15]} 46. Bc4 {[%emt 0:00:12]} Ra3 {[%emt 0:00:07]} 47. b5 {[%emt 0:00:06]} 1-0

[Event "26th Hit Open-A 2022"]
[Site "Nova Gorica"]
[Date "2022.09.15"]
[Round "1.10"]
[White "Ronka, Erik"]
[Black "Kaasen, Tor Fredrik"]
[Result "0-1"]
[ECO "C88"]
[WhiteElo "2248"]
[BlackElo "2442"]
[Annotator "ChessBase"]
[PlyCount "112"]
[EventDate "2022.09.16"]
[EventType "swiss"]
[EventCountry "SLO"]
[SourceTitle "playchess.com"]
[Source "ChessBase"]
[SourceQuality "1"]
[TimeControl "5400+30"]

1. e4 {[%emt 0:00:04]} e5 {[%emt 0:01:01]} 2. Nf3 {[%emt 0:00:05]} Nc6 {[%emt 0:00:23]} 3. Bb5 {[%emt 0:00:07]} a6 {[%emt 0:00:27]} 4. Ba4 {[%emt 0:00:05]} Nf6 {[%emt 0:01:13]} 5. O-O {[%emt 0:00:09]} Be7 {[%emt 0:00:30]} 6. Re1 {[%emt 0:00:19]} b5 {[%emt 0:00:20]} 7. Bb3 {[%emt 0:00:03]} O-O {[%emt 0:00:29]} 8. a4 {[%emt 0:00:20]} Bb7 {[%emt 0:00:49]} 9. d3 {[%emt 0:03:00]} d6 {[%emt 0:00:41]} 10. Nbd2 {[%emt 0:02:51]} Na5 {[%emt 0:03:04]} 11. Ba2 {[%emt 0:01:44]} c5 {[%emt 0:00:26]} 12. Nf1 {[%emt 0:06:27]} b4 {[%emt 0:03:03]} 13. c3 {[%emt 0:14:42]} Rb8 {[%emt 0:04:56]} 14. cxb4 {[%emt 0:03:22]} cxb4 {[%emt 0:00:27]} 15. Bd2 {[%emt 0:01:03]} Nc6 {[%emt 0:07:38]} 16. Ne3 {[%emt 0:02:51]} Qd7 {[%emt 0:04:57]} 17. Nf5 {[%emt 0:07:27]} Bd8 {[%emt 0:03:07]} 18. Bg5 {[%emt 0:04:39]} g6 {[%emt 0:08:53]} 19. Ng3 {[%emt 0:06:08]} Re8 {[%emt 0:07:23]} 20. d4 {[%emt 0:12:52]} Qe7 {[%emt 0:02:59]} 21. d5 {[%emt 0:06:38]} Na5 {[%emt 0:01:53]} 22. Nd2 {[%emt 0:05:14]} Bc8 {[%emt 0:03:55]} 23. Rc1 {[%emt 0:05:33]} Kg7 {[%emt 0:04:21]} 24. h3 {[%emt 0:02:12]} Bb6 {[%emt 0:04:32]} 25. Nc4 {[%emt 0:06:05]} Nxc4 {[%emt 0:02:14]} 26. Bxc4 {[%emt 0:00:04]} h6 {[%emt 0:00:57]} 27. Be3 {[%emt 0:01:17]} Bxe3 {[%emt 0:02:07]} 28. Rxe3 {[%emt 0:00:04]} Nd7 {[%emt 0:02:03]} 29. Nf1 {[%emt 0:02:03]} Nc5 {[%emt 0:01:28]} 30. b3 {[%emt 0:01:45]} Kh7 {[%emt 0:01:21]} 31. Be2 {[%emt 0:01:45]} Rg8 {[%emt 0:05:25]} 32. Qe1 {[%emt 0:01:41]} Qa7 {[%emt 0:02:38]} 33. Kh1 {[%emt 0:01:13]} f5 {[%emt 0:00:50]} 34. exf5 {[%emt 0:00:04]} gxf5 {[%emt 0:00:47]} 35. g3 {[%emt 0:03:16]} Qg7 {[%emt 0:02:36]} 36. Bd3 {[%emt 0:00:31]} e4 {[%emt 0:02:09]} 37. Bb1 {[%emt 0:00:32]} Kh8 {[%emt 0:00:12]} 38. f4 {[%emt 0:00:34]} a5 {[%emt 0:02:04]} 39. Nh2 {[%emt 0:00:26]} Bb7 {[%emt 0:01:08]} 40. Qd1 {[%emt 0:00:28]} Rbc8 {[%emt 0:00:54]} 41. g4 {[%emt 0:00:34]} Nd7 {[%emt 0:03:35]} 42. Rxc8 {[%emt 0:00:17]} Rxc8 {[%emt 0:00:07]} 43. gxf5 {[%emt 0:00:30]} Qb2 {[%emt 0:01:34]} 44. Re1 {[%emt 0:00:41]} e3 {[%emt 0:01:00]} 45. Be4 {[%emt 0:00:37]} Nf6 {[%emt 0:02:34]} 46. Bf3 {[%emt 0:00:10]} Rc2 {[%emt 0:00:44]} 47. Nf1 {[%emt 0:00:48]} Nxd5 {[%emt 0:03:15]} 48. Qa1 {[%emt 0:00:37]} Qxa1 {[%emt 0:01:30]} 49. Rxa1 {[%emt 0:00:01]} e2 {[%emt 0:00:45]} 50. Nh2 {[%emt 0:00:29]} Rd2 {[%emt 0:01:40]} 51. Re1 {[%emt 0:00:28]} Nxf4 {[%emt 0:00:32]} 52. Kg1 {[%emt 0:00:52]} Bxf3 {[%emt 0:00:21]} 53. Nxf3 {[%emt 0:00:03]} Rd3 {[%emt 0:00:18]} 54. Kf2 {[%emt 0:00:58]} Rxb3 {[%emt 0:00:16]} 55. Kg3 {[%emt 0:00:37]} Nd3 {[%emt 0:00:17]} 56. Rxe2 {[%emt 0:00:29]} Ne5 {[%emt 0:00:05]} 0-1

[Event "26th Hit Open-A 2022"]
[Site "Nova Gorica"]
[Date "2022.09.15"]
[Round "1.11"]
[White "Ghazarian, Kirk"]
[Black "Thuesen, Mogens"]
[Result "1-0"]
[ECO "D30"]
[WhiteElo "2440"]
[BlackElo "2242"]
[Annotator "ChessBase"]
[PlyCount "97"]
[EventDate "2022.09.16"]
[EventType "swiss"]
[EventCountry "SLO"]
[SourceTitle "playchess.com"]
[Source "ChessBase"]
[SourceQuality "1"]
[TimeControl "5400+30"]

1. d4 {[%emt 0:00:11]} d5 {[%emt 0:00:22]} 2. Nf3 {[%emt 0:00:10]} e6 {[%emt 0:00:27]} 3. c4 {[%emt 0:00:17]} c6 {[%emt 0:00:06]} 4. e3 {[%emt 0:00:15]} Nf6 {[%emt 0:00:11]} 5. b3 {[%emt 0:00:40]} Nbd7 {[%emt 0:00:25]} 6. Bb2 {[%emt 0:00:25]} Bb4+ {[%emt 0:03:27]} 7. Nbd2 {[%emt 0:00:10]} O-O {[%emt 0:00:44]} 8. Bd3 {[%emt 0:00:47]} Ne4 {[%emt 0:04:05]} 9. a3 {[%emt 0:05:55]} Ba5 {[%emt 0:02:51]} 10. b4 {[%emt 0:03:42]} Nxd2 {[%emt 0:00:07]} 11. Qxd2 {[%emt 0:00:32]} Bc7 {[%emt 0:00:08]} 12. O-O {[%emt 0:01:46]} Qe7 {[%emt 0:09:59]} 13. Qc2 {[%emt 0:06:06]} h6 {[%emt 0:02:07]} 14. Rac1 {[%emt 0:05:39]} dxc4 {[%emt 0:08:18]} 15. Qxc4 {[%emt 0:00:16]} Bd6 {[%emt 0:00:43]} 16. Bb1 {[%emt 0:02:17]} Rd8 {[%emt 0:06:02]} 17. Qc2 {[%emt 0:02:19]} Nf8 {[%emt 0:00:38]} 18. e4 {[%emt 0:00:29]} a5 {[%emt 0:04:01]} 19. e5 {[%emt 0:00:18]} Bb8 {[%emt 0:00:28]} 20. Bc3 {[%emt 0:00:26]} b6 {[%emt 0:03:48]} 21. Nd2 {[%emt 0:13:11]} c5 {[%emt 0:08:12]} 22. dxc5 {[%emt 0:02:53]} bxc5 {[%emt 0:00:13]} 23. b5 {[%emt 0:01:11]} Bb7 {[%emt 0:01:11]} 24. Nc4 {[%emt 0:01:51]} Qh4 {[%emt 0:01:58]} 25. f4 {[%emt 0:04:49]} Ng6 {[%emt 0:04:24]} 26. Rcd1 {[%emt 0:19:09]} Bc7 {[%emt 0:07:07]} 27. b6 {[%emt 0:02:24]} Rxd1 {[%emt 0:00:18]} 28. Qxd1 {[%emt 0:02:20]} Rd8 {[%emt 0:00:35]} 29. Qe1 {[%emt 0:00:38]} Qxe1 {[%emt 0:07:37]} 30. Rxe1 {[%emt 0:01:18]} Bb8 {[%emt 0:00:13]} 31. Nxa5 {[%emt 0:01:07]} Bd5 {[%emt 0:00:34]} 32. g3 {[%emt 0:01:19]} Ne7 {[%emt 0:00:30]} 33. Bc2 {[%emt 0:03:03]} Nc8 {[%emt 0:04:20]} 34. Rb1 {[%emt 0:01:01]} g5 {[%emt 0:00:15]} 35. Kf2 {[%emt 0:04:43]} f6 {[%emt 0:02:14]} 36. Ke3 {[%emt 0:02:45]} fxe5 {[%emt 0:02:40]} 37. Bxe5 {[%emt 0:00:14]} Nd6 {[%emt 0:01:18]} 38. Bd3 {[%emt 0:01:35]} c4 {[%emt 0:05:49]} 39. Bxd6 {[%emt 0:03:37]} Bxd6 {[%emt 0:00:04]} 40. Nxc4 {[%emt 0:03:57]} Bc5+ {[%emt 0:01:34]} 41. Ke2 {[%emt 0:00:02]} gxf4 {[%emt 0:03:14]} 42. gxf4 {[%emt 0:00:03]} Rb8 {[%emt 0:04:21]} 43. Rb5 {[%emt 0:04:03]} Bg1 {[%emt 0:01:10]} 44. a4 {[%emt 0:01:06]} Bc6 {[%emt 0:00:31]} 45. Rb1 {[%emt 0:00:32]} Bxh2 {[%emt 0:00:33]} 46. a5 {[%emt 0:01:00]} Bxf4 {[%emt 0:00:34]} 47. a6 {[%emt 0:00:03]} h5 {[%emt 0:01:49]} 48. b7 {[%emt 0:00:49]} Bc7 {[%emt 0:00:20]} 49. a7 {[%emt 0:00:29]} 1-0

[Event "26th Hit Open-A 2022"]
[Site "Nova Gorica"]
[Date "2022.09.15"]
[Round "1.12"]
[White "Zamar Kodelja, Jurij"]
[Black "Wadsworth, Matthew J"]
[Result "0-1"]
[ECO "D15"]
[WhiteElo "2241"]
[BlackElo "2423"]
[Annotator "ChessBase"]
[PlyCount "58"]
[EventDate "2022.09.16"]
[EventType "swiss"]
[EventCountry "SLO"]
[SourceTitle "playchess.com"]
[Source "ChessBase"]
[SourceQuality "1"]
[TimeControl "5400+30"]

1. d4 {[%emt 0:00:05]} d5 {[%emt 0:00:11]} 2. c4 {[%emt 0:00:10]} c6 {[%emt 0:00:07]} 3. Nf3 {[%emt 0:00:07]} Nf6 {[%emt 0:00:08]} 4. e3 {[%emt 0:00:58]} Bf5 {[%emt 0:00:21]} 5. Nc3 {[%emt 0:00:35]} a6 {[%emt 0:00:29]} 6. Qb3 {[%emt 0:00:28]} Ra7 {[%emt 0:00:14]} 7. a4 {[%emt 0:03:08]} e6 {[%emt 0:01:08]} 8. Be2 {[%emt 0:02:04]} a5 {[%emt 0:05:06]} 9. Nh4 {[%emt 0:04:50]} Be4 {[%emt 0:00:52]} 10. f3 {[%emt 0:03:01]} dxc4 {[%emt 0:01:13]} 11. Bxc4 {[%emt 0:00:10]} Bd5 {[%emt 0:00:06]} 12. Nxd5 {[%emt 0:10:32]} cxd5 {[%emt 0:10:07]} 13. Bb5+ {[%emt 0:00:08]} Nc6 {[%emt 0:00:05]} 14. g3 {[%emt 0:00:23]} Bb4+ {[%emt 0:01:07]} 15. Ke2 {[%emt 0:06:29]} O-O {[%emt 0:05:22]} 16. Ng2 {[%emt 0:00:35]} Qd6 {[%emt 0:10:38]} 17. Rd1 {[%emt 0:04:44]} e5 {[%emt 0:07:47]} 18. dxe5 {[%emt 0:13:07]} Qxe5 {[%emt 0:00:06]} 19. Nf4 {[%emt 0:01:21]} Rd8 {[%emt 0:11:13]} 20. Kf2 {[%emt 0:05:30]} Raa8 {[%emt 0:00:28]} 21. Kg2 {[%emt 0:04:30]} Rac8 {[%emt 0:02:40]} 22. Bd2 {[%emt 0:07:54]} Bxd2 {[%emt 0:00:48]} 23. Rxd2 {[%emt 0:00:16]} g5 {[%emt 0:00:09]} 24. Ne2 {[%emt 0:07:15]} Re8 {[%emt 0:16:19]} 25. Rd3 {[%emt 0:04:25]} g4 {[%emt 0:01:56]} 26. Rf1 {[%emt 0:01:24]} Nb4 {[%emt 0:00:40]} 27. Bxe8 {[%emt 0:01:36]} Rc2 {[%emt 0:00:04]} 28. Kg1 {[%emt 0:05:40]} Rxe2 {[%emt 0:02:23]} 29. Qc3 {[%emt 0:00:20]} Nxd3 {[%emt 0:00:25]} 0-1